bitfinex/quotes_ETHUSD_20250929
["timestamp","ask_amount","ask_price","bid_price","bid_amount"]
[1759136650329,0.0008,4135.1,4135.0,3.065]
[1759136650655,0.4664,4135.1,4135.0,3.065]
[1759136650856,0.4664,4135.1,4135.0,17.565]
[1759136651353,0.7118,4135.1,4135.0,17.565]
[1759136651524,0.4664,4135.1,4135.0,17.565]
[1759136653825,0.0008,4135.1,4135.0,17.565]
[1759136654025,0.0008,4135.1,4135.0,17.8028]
[1759136655530,0.0008,4135.1,4135.0,20.22117968]
[1759136656958,0.0008,4135.1,4135.0,17.8028]
[1759136657365,0.0008,4135.1,4135.0,20.22117968]
[1759136657662,0.0008,4135.1,4135.0,20.68017968]
[1759136657845,0.0008,4135.1,4135.0,23.11284308]
[1759136658245,0.0008,4135.1,4135.0,20.6944634]
[1759136658454,0.0008,4135.1,4135.0,22.65384308]
[1759136660266,0.0008,4135.1,4135.0,20.2354634]
[1759136660765,0.0008,4135.1,4135.0,22.65384308]
[1759136665100,0.001,4135.2,4135.0,22.65384308]
[1759136665276,0.001,4135.2,4135.1,0.2378]
[1759136668761,2.88576272,4135.2,4135.0,0.002]
[1759136668959,4.52703285,4135.1,4134.2,0.002]
[1759136669202,2.41861365,4134.6,4134.2,0.002]
[1759136669408,5.48261365,4134.6,4134.2,0.002]
[1759136669708,6.18271365,4134.6,4134.2,0.002]
[1759136669859,0.001,4135.2,4134.5,4.3633611]
[1759136670061,0.001,4135.2,4134.6,1.13313611]
[1759136670356,0.001,4135.2,4134.8,2.4184389]
[1759136670566,0.001,4135.2,4134.9,3.08818438]
[1759136670773,0.001,4135.2,4134.9,3.32598438]
[1759136670966,0.001,4135.2,4135.1,2.4183212]
[1759136671171,0.001,4135.2,4135.1,17.564]
[1759136671373,0.001,4135.2,4135.1,20.2201212]
[1759136674798,0.001,4135.2,4135.1,20.6791212]
[1759136674971,0.001,4135.2,4135.1,22.98887687]
[1759136675175,0.001,4135.2,4135.1,22.52987687]
[1759136675373,0.001,4135.2,4135.1,22.98887687]
[1759136676797,0.001,4135.2,4135.1,22.52987687]
[1759136676999,0.001,4135.2,4135.1,14.5]
[1759136677000,0.4675,4135.2,4135.1,14.5]
[1759136677299,0.7011,4135.2,4135.1,17.564]
[1759136677500,0.4675,4135.2,4135.1,17.564]
[1759136678087,0.7011,4135.2,4135.1,17.564]
[1759136682916,0.4675,4135.2,4135.1,17.564]
[1759136688435,0.001,4135.2,4135.1,19.9823212]
[1759136688936,0.001,4135.2,4135.1,20.2234212]
[1759136690227,0.0002,4135.2,4135.1,20.2234212]
[1759136691657,0.0002,4135.2,4135.1,19.9823212]
[1759136691849,0.0002,4135.2,4135.1,20.2234212]
[1759136693174,0.0002,4135.2,4135.1,17.8051]
[1759136693461,0.0002,4135.2,4135.1,19.9823212]
[1759136695233,0.0002,4135.2,4135.1,17.564]
[1759136696253,0.0002,4135.2,4135.1,19.9823212]
[1759136696454,0.0002,4135.2,4135.1,20.2234212]
[1759136701466,0.0002,4135.2,4135.1,19.9823212]
[1759136701669,0.0002,4135.2,4135.1,22.22259518]
[1759136701873,0.0002,4135.2,4135.1,22.89959518]
[1759136703160,0.0002,4135.2,4135.1,23.02039518]
[1759136709078,0.0002,4135.2,4135.1,22.58449518]
[1759136709652,0.0002,4135.2,4135.1,22.58649518]
[1759136714388,0.6862,4135.2,4135.1,14.502]
[1759136714593,0.0002,4135.2,4135.1,20.2256212]
[1759136715173,0.0004,4135.3,4135.2,2.41826272]
[1759136715360,0.0004,4135.3,4135.2,2.68574534]
[1759136715562,0.0004,4135.3,4135.2,5.00863199]
[1759136715789,0.0004,4135.3,4135.2,4.98444937]
[1759136717887,0.0004,4135.3,4135.2,2.66156272]
[1759136718206,0.0004,4135.3,4135.2,17.62374534]
[1759136718408,0.0004,4135.3,4135.2,17.16156272]
[1759136720388,0.0004,4135.3,4135.2,17.72036272]
[1759136723004,0.0004,4135.3,4135.2,17.28236272]
[1759136723298,0.0004,4135.3,4135.2,19.60283111]
[1759136723867,0.0004,4135.3,4135.2,19.35953111]
[1759136724170,0.0004,4135.3,4135.2,22.42053111]
[1759136724577,0.0004,4135.3,4135.2,22.66383111]
[1759136725097,0.0004,4135.3,4135.2,22.42053111]
[1759136726594,0.0004,4135.3,4135.2,19.35953111]
[1759136726796,0.0004,4135.3,4135.2,22.42053111]
[1759136727304,0.4472,4135.3,4135.2,22.42053111]
[1759136727669,0.0004,4135.3,4135.2,22.42053111]
[1759136727873,0.0004,4135.3,4135.2,22.66383111]
[1759136729171,0.0004,4135.3,4135.2,22.42053111]
[1759136730404,0.0004,4135.3,4135.2,22.66383111]
[1759136731198,0.0004,4135.3,4135.2,22.42053111]
[1759136731511,0.4472,4135.3,4135.2,22.42053111]
[1759136731678,0.0004,4135.3,4135.2,22.42053111]
[1759136733517,0.6864,4135.3,4135.2,20.10006272]
[1759136734378,0.0004,4135.3,4135.2,20.10006272]
[1759136736420,0.4472,4135.3,4135.2,20.10006272]
[1759136739026,0.4472,4135.3,4135.2,17.03906272]
[1759136739187,0.4472,4135.3,4135.2,20.09906272]
[1759136740013,0.4464,4135.3,4135.2,20.09906272]
[1759136740692,0.6942,4135.3,4135.2,20.09906272]
[1759136741605,0.4464,4135.3,4135.2,20.09906272]
[1759136742725,0.2478,4135.5,4135.3,2.41815378]
[1759136743028,0.2478,4135.5,4135.2,20.09906272]
[1759136743029,0.2478,4135.5,4135.4,5.47814576]
[1759136744122,0.6871,4135.5,4135.4,3.06]
[1759136746133,0.6881,4135.5,4135.4,3.06]
[1759136747146,0.4403,4135.5,4135.4,3.06]
[1759136752221,0.001,4135.5,4135.2,14.6208]
[1759136752424,0.6871,4135.4,4135.3,3.06]
[1759136752625,0.2488,4135.4,4135.3,3.06]
[1759136752944,0.001,4135.5,4135.3,3.06]
[1759136752945,0.001,4135.5,4135.3,5.47820424]
[1759136753150,0.001,4135.5,4135.3,5.71750424]
[1759136754852,0.001,4135.5,4135.4,2.41814576]
[1759136756051,0.001,4135.5,4135.3,3.2993]
[1759136756229,0.001,4135.5,4135.4,14.5]
[1759136756744,0.001,4135.5,4135.4,16.91814576]
[1759136756922,0.001,4135.5,4135.4,17.15744576]
[1759136759662,0.09797028,4135.5,4135.4,17.15744576]
[1759136760830,0.09797028,4135.5,4135.4,14.7393]
[1759136761052,0.09797028,4135.5,4135.4,17.15744576]
[1759136763372,0.09797028,4135.5,4135.4,16.91814576]
[1759136763563,0.09797028,4135.5,4135.4,17.15744576]
[1759136764976,0.09717028,4135.5,4135.4,17.15744576]
[1759136766446,0.0002,4135.5,4135.4,18.25820479]
[1759136767979,0.0002,4135.5,4135.4,18.35515627]
[1759136768764,0.0002,4135.5,4135.4,21.35515627]
[1759136773653,0.0002,4135.5,4135.4,22.14715627]
[1759136774591,0.0002,4135.5,4135.4,26.37715627]
[1759136775192,0.0002,4135.5,4135.4,22.14715627]
[1759136775358,0.001,4136.2,4135.8,0.792]
[1759136775552,0.001,4136.2,4136.1,3.33053651]
[1759136775756,0.001,4136.2,4136.1,9.41171387]
[1759136775989,0.001,4136.2,4136.1,24.68205933]
[1759136776191,0.001,4136.2,4136.1,26.99143392]
[1759136777990,0.001,4136.2,4136.1,27.47464055]
[1759136778686,0.001,4136.2,4136.1,22.92804055]
[1759136778879,0.001,4136.2,4136.1,25.98504055]
[1759136779259,0.001,4136.2,4136.1,26.22224055]
[1759136781706,0.001,4136.2,4136.1,26.68264055]
[1759136783212,0.001,4136.2,4136.1,26.22224055]
[1759136784893,0.001,4136.2,4136.1,30.45224055]
[1759136787714,0.001,4136.2,4136.1,30.21504055]
[1759136787917,0.001,4136.2,4136.1,30.45224055]
[1759136788116,0.001,4136.2,4136.1,30.21504055]
[1759136788309,0.001,4136.2,4136.1,30.45224055]
[1759136788509,0.001,4136.2,4136.1,30.21504055]
[1759136789015,0.001,4136.2,4136.1,30.45224055]
[1759136789389,0.001,4136.2,4136.1,30.21504055]
[1759136789990,0.0002,4136.2,4136.1,30.21504055]
[1759136791120,0.0002,4136.2,4136.1,30.45224055]
[1759136791819,0.0002,4136.2,4136.1,30.21504055]
[1759136793793,0.0002,4136.2,4136.1,30.45224055]
[1759136794120,0.0002,4136.2,4136.1,30.21504055]
[1759136794906,0.45,4136.2,4136.1,30.21504055]
[1759136795095,0.0002,4136.2,4136.1,30.21504055]
[1759136795517,0.0002,4136.2,4136.1,30.45224055]
[1759136797152,0.0002,4136.2,4136.1,30.45424055]
[1759136798156,0.0002,4136.2,4136.1,26.22424055]
[1759136798755,0.0002,4136.2,4136.1,25.98704055]
[1759136799116,0.0002,4136.2,4136.1,26.21914055]
[1759136799520,0.0002,4136.2,4136.1,27.47154055]
[1759136806253,0.0002,4136.2,4136.1,27.01114055]
[1759136811475,0.0002,4136.2,4136.1,26.52793392]
[1759136814482,0.0002,4136.2,4136.1,27.02203995]
[1759136814676,0.0002,4136.2,4136.1,27.48243995]
[1759136814881,0.001,4136.4,4136.2,3.20967806]
[1759136814882,0.0004,4136.3,4136.2,3.20967806]
[1759136815051,0.0004,4136.3,4136.2,6.64932497]
[1759136815250,0.0004,4136.3,4136.2,6.88142497]
[1759136815451,0.0004,4136.3,4136.2,21.47834733]
[1759136817587,0.0004,4136.3,4136.2,25.70834733]
[1759136818547,0.0004,4136.3,4136.2,26.16874733]
[1759136818965,0.0004,4136.3,4136.2,25.70834733]
[1759136821388,0.0004,4136.3,4136.2,29.16874733]
[1759136823267,0.001,4136.8,4136.2,29.16874733]
[1759136823464,0.4515,4137.2,4137.0,3.20921053]
[1759136823665,0.4515,4137.2,4137.0,6.26221053]
[1759136823966,0.001,4137.2,4137.0,20.88301053]
[1759136826876,0.001,4137.2,4137.0,21.33351053]
[1759136827871,0.4515,4137.1,4137.0,21.33351053]
[1759136828073,0.4515,4137.1,4137.0,21.6545819]
[1759136828671,0.4515,4137.1,4137.0,21.2040819]
[1759136830586,0.001,4137.1,4137.0,21.2040819]
[1759136833912,0.001,4137.1,4137.0,21.4353819]
[1759136835526,0.001,4137.1,4137.0,25.4340819]
[1759136839906,0.0002,4137.1,4137.0,25.4340819]
[1759136842149,0.4708,4137.1,4137.0,25.4340819]
[1759136842304,0.0002,4137.1,4137.0,25.4340819]
[1759136842829,0.7078,4137.1,4137.0,21.5890819]
[1759136843123,0.7078,4137.1,4137.0,21.26801053]
[1759136843307,0.7078,4137.1,4137.0,24.31901053]
[1759136847223,0.7078,4137.1,4137.0,21.26801053]
[1759136847434,0.7078,4137.1,4137.0,14.6208]
[1759136847620,0.7078,4137.1,4137.0,17.551]
[1759136850352,0.7078,4137.1,4136.7,0.1208]
[1759136850550,0.7078,4137.1,4136.8,3.05]
[1759136850842,0.7076,4137.0,4136.9,14.5]
[1759136851002,0.7076,4137.0,4136.9,17.55]
[1759136851910,1.02018555,4137.0,4136.9,17.55]
[1759136853642,6.43739608,4137.0,4136.9,3.05]
[1759136854337,2.41726896,4136.9,4136.8,3.05]
[1759136854539,2.41734154,4136.8,4136.7,3.05]
[1759136854710,3.12494154,4136.8,4136.7,3.05]
[1759136854910,1.66579825,4136.8,4136.7,3.05]
[1759136855106,4.08312565,4136.8,4136.7,3.05]
[1759136855830,1.66579825,4136.8,4136.7,3.05]
[1759136856320,0.7076,4136.8,4136.7,3.05]
[1759136857751,2.41744427,4136.6,4136.5,0.002]
[1759136857950,2.41744427,4136.6,4136.5,3.052]
[1759136858152,6.12504427,4136.6,4136.5,0.002]
[1759136858353,7.35199532,4136.6,4136.5,14.502]
[1759136859521,12.86938773,4136.6,4136.5,0.002]
[1759136859748,13.59663666,4136.6,4136.5,0.002]
[1759136860876,11.17919239,4136.6,4136.5,0.002]
[1759136861169,3.4706,4136.6,4136.5,0.002]
[1759136861872,3.7092,4136.6,4136.5,0.002]
[1759136864550,6.12664427,4136.6,4136.5,0.002]
[1759136864878,6.12584427,4136.6,4136.5,0.002]
[1759136865767,3.7084,4136.6,4136.5,0.002]
[1759136865970,6.12584427,4136.6,4136.5,0.002]
[1759136866960,7.0528708,4136.6,4136.5,0.002]
[1759136867160,10.15281894,4136.6,4136.5,0.002]
[1759136867561,12.57026321,4136.6,4136.5,0.002]
[1759136868382,13.29749098,4136.6,4136.5,0.002]
[1759136872290,12.5514822,4136.6,4136.5,0.002]
[1759136883399,12.3128822,4136.6,4136.5,0.002]
[1759136885301,12.5514822,4136.6,4136.5,0.002]
[1759136889624,12.3128822,4136.6,4136.5,0.002]
[1759136889813,12.3120822,4136.6,4136.5,0.002]
[1759136890990,12.5495822,4136.6,4136.5,0.002]
[1759136891824,12.3120822,4136.6,4136.5,0.002]
[1759136898800,12.3130822,4136.6,4136.5,0.002]
[1759136902239,11.8440822,4136.6,4136.5,0.002]
[1759136902438,15.5838822,4136.6,4136.5,0.002]
[1759136903854,12.5358822,4136.6,4136.5,0.002]
[1759136904006,15.5838822,4136.6,4136.5,0.002]
[1759136904201,12.5358822,4136.6,4136.5,0.002]
[1759136904499,15.3456822,4136.6,4136.5,0.002]
[1759136905737,15.3466822,4136.6,4136.5,0.002]
[1759136911042,11.8440822,4136.6,4136.5,0.002]
[1759136911357,13.96405567,4136.6,4136.5,0.2333]
[1759136913235,10.91705567,4136.6,4136.5,0.2333]
[1759136914156,10.91705567,4136.6,4136.5,14.7333]
[1759136914454,10.91705567,4136.6,4136.5,0.2333]
[1759136914653,11.37165567,4136.6,4136.5,0.002]
[1759136914857,13.07817491,4136.6,4136.5,0.002]
[1759136920875,16.11677491,4136.6,4136.5,0.002]
[1759136921049,16.35577491,4136.6,4136.5,0.002]
[1759136921254,15.66957491,4136.6,4136.5,0.002]
[1759136921450,13.30977491,4136.6,4136.5,0.002]
[1759136921645,16.35577491,4136.6,4136.5,0.002]
[1759136922439,16.11677491,4136.6,4136.5,0.002]
[1759136923246,16.35577491,4136.6,4136.5,0.002]
[1759136926381,16.11677491,4136.6,4136.5,0.002]
[1759136926550,16.35577491,4136.6,4136.5,0.002]
[1759136930951,13.30977491,4136.6,4136.5,0.002]
[1759136931280,16.35477491,4136.6,4136.5,0.002]
[1759136931481,16.11577491,4136.6,4136.5,0.002]
[1759136933271,14.40845567,4136.6,4136.5,0.002]
[1759136934250,15.15936555,4136.6,4136.5,0.002]
[1759136938883,14.71216555,4136.6,4136.5,0.002]
[1759136939086,11.66716555,4136.6,4136.5,0.2439]
[1759136939390,14.71116555,4136.6,4136.5,0.2439]
[1759136939683,14.71036555,4136.6,4136.5,0.002]
[1759136941293,3.72662777,4136.6,4136.5,0.2439]
[1759136941583,3.72662777,4136.6,4136.5,0.002]
[1759136941584,6.14407204,4136.6,4136.5,0.002]
[1759136941888,6.14407204,4136.6,4136.5,0.2439]
[1759136945178,6.14407204,4136.6,4136.5,14.7439]
[1759136946389,6.14407204,4136.6,4136.5,14.502]
[1759136946690,6.14407204,4136.6,4136.5,0.002]
[1759136946892,7.92546147,4136.6,4136.5,0.002]
[1759136947092,6.14407204,4136.6,4136.5,0.2439]
[1759136947297,6.59127204,4136.6,4136.5,0.002]
[1759136947985,6.14407204,4136.6,4136.5,0.002]
[1759136948293,6.14407204,4136.6,4136.5,0.2439]
[1759136949496,3.72662777,4136.6,4136.5,0.6737]
[1759136949694,6.14407204,4136.6,4136.5,0.6737]
[1759136950193,6.14407204,4136.6,4136.5,0.2439]
[1759136951065,7.35025389,4136.6,4136.5,0.2439]
[1759136951670,6.14407204,4136.6,4136.5,0.2439]
[1759136953112,3.72662777,4136.6,4136.5,15.1737]
[1759136953598,3.72662777,4136.6,4136.5,15.1781]
[1759136954902,6.14407204,4136.6,4136.5,15.1781]
[1759136956286,6.14407204,4136.6,4136.5,14.7439]
[1759136959305,6.15407204,4136.6,4136.5,14.7439]
[1759136959804,3.73662777,4136.6,4136.5,14.7439]
[1759136960178,3.73662777,4136.6,4136.5,15.1781]
[1759136961226,6.15407204,4136.6,4136.5,15.1781]
[1759136961407,3.73662777,4136.6,4136.5,15.1781]
[1759136964724,3.73582777,4136.6,4136.5,15.1781]
[1759136966534,3.73582777,4136.6,4136.5,14.7439]
[1759136973824,6.85027204,4136.6,4136.5,14.502]
[1759136974533,4.43282777,4136.6,4136.5,14.502]
[1759136975513,6.85027204,4136.6,4136.5,14.502]
[1759136975727,4.43282777,4136.6,4136.5,14.502]
[1759136978557,4.43282777,4136.6,4136.5,0.002]
[1759136981169,3.73582777,4136.6,4136.5,0.002]
[1759136985879,5.38128447,4136.6,4136.5,0.002]
[1759136986048,7.79872874,4136.6,4136.5,0.002]
[1759136988182,7.57342874,4136.6,4136.5,0.002]
[1759136988382,5.15598447,4136.6,4136.5,0.002]
[1759136988882,7.57342874,4136.6,4136.5,0.002]
[1759136989679,5.15518447,4136.6,4136.5,0.002]
[1759136989985,4.16712777,4136.6,4136.5,0.002]
[1759136990181,6.58457204,4136.6,4136.5,0.002]
[1759136990993,4.16712777,4136.6,4136.5,0.002]
[1759136991490,6.58457204,4136.6,4136.5,0.002]
[1759136991854,3.73502777,4136.6,4136.5,0.002]
[1759136994297,8.50609396,4136.6,4136.5,0.002]
[1759136998407,10.92353823,4136.6,4136.5,0.002]
[1759136999974,8.50609396,4136.6,4136.5,0.002]
[1759137001003,8.50609396,4136.6,4136.5,0.2314]
[1759137001511,10.92353823,4136.6,4136.5,0.2314]
[1759137001677,8.50609396,4136.6,4136.5,14.7314]
[1759137004607,8.50609396,4136.6,4136.5,0.2314]
[1759137005212,8.50609396,4136.6,4136.5,14.7314]
[1759137006142,10.92353823,4136.6,4136.5,14.502]
[1759137006630,11.35563823,4136.6,4136.5,14.502]
[1759137008224,8.93819396,4136.6,4136.5,14.502]
[1759137008702,8.50609396,4136.6,4136.5,14.502]
[1759137009931,10.92353823,4136.6,4136.5,14.502]
[1759137010425,3.73502777,4136.6,4136.5,14.502]
[1759137011331,6.15247204,4136.6,4136.5,14.502]
[1759137011496,6.15247204,4136.6,4136.5,0.002]
[1759137011692,3.73502777,4136.6,4136.5,0.002]
[1759137012809,6.15247204,4136.6,4136.5,0.002]
[1759137013011,3.73502777,4136.6,4136.5,0.002]
[1759137013934,6.15247204,4136.6,4136.5,0.002]
[1759137014406,3.73502777,4136.6,4136.5,0.002]
[1759137014603,3.73422777,4136.6,4136.5,0.002]
[1759137016736,3.73422777,4136.6,4136.5,0.2311]
[1759137017608,3.73422777,4136.6,4136.5,0.002]
[1759137017809,6.15167204,4136.6,4136.5,0.002]
[1759137018445,6.57937204,4136.6,4136.5,0.002]
[1759137025760,6.81307204,4136.6,4136.5,0.002]
[1759137025936,8.51782263,4136.6,4136.5,0.002]
[1759137026435,6.81307204,4136.6,4136.5,0.002]
[1759137027159,6.57937204,4136.6,4136.5,0.002]
[1759137027856,3.73422777,4136.6,4136.5,0.002]
[1759137028056,3.73422777,4136.6,4136.5,0.2311]
[1759137029948,3.73422777,4136.6,4136.5,14.7311]
[1759137031433,3.73422777,4136.6,4136.5,14.502]
[1759137031765,6.15167204,4136.6,4136.5,14.502]
[1759137032364,3.73422777,4136.6,4136.5,14.502]
[1759137032968,3.73422777,4136.6,4136.5,0.002]
[1759137033166,3.73422777,4136.6,4136.5,0.2311]
[1759137033342,0.73822777,4136.6,4136.5,17.47531271]
[1759137033560,0.73822777,4136.6,4136.5,15.51801]
[1759137033864,0.73822777,4136.6,4136.5,17.93551271]
[1759137036991,0.011,4136.6,4136.5,17.93551271]
[1759137037163,0.011,4136.6,4136.5,18.05631271]
[1759137039690,0.0102,4136.6,4136.5,18.05631271]
[1759137041796,0.0102,4136.6,4136.5,18.15323389]
[1759137042097,0.01,4136.8,4136.7,3.20938583]
[1759137042284,0.01,4136.8,4136.7,8.70732165]
[1759137042463,0.01,4136.8,4136.7,6.96278583]
[1759137042662,0.01,4136.8,4136.7,21.46278583]
[1759137043392,1e-08,4136.8,4136.7,21.46278583]
[1759137043575,1e-08,4136.8,4136.7,21.55969926]
[1759137046103,1e-08,4136.8,4136.7,22.04806676]
[1759137046289,1e-08,4136.8,4136.7,28.76957471]
[1759137047203,1e-08,4136.8,4136.7,28.28120721]
[1759137047597,1e-08,4136.8,4136.7,27.48920721]
[1759137049399,0.00100001,4136.8,4136.7,28.28120721]
[1759137049901,0.00100001,4136.8,4136.7,28.76860601]
[1759137051113,0.00100001,4136.8,4136.7,27.97660601]
[1759137051913,1e-08,4137.1,4137.0,3.20921053]
[1759137052082,1e-08,4137.2,4137.1,3.20915211]
[1759137052284,1e-08,4137.2,4137.1,7.43915211]
[1759137052480,1e-08,4137.2,4137.1,22.65855211]
[1759137052686,1e-08,4137.2,4137.1,18.52545686]
[1759137053917,1e-08,4137.5,4137.4,3.20897684]
[1759137054095,1e-08,4137.5,4137.4,8.43858997]
[1759137054307,1e-08,4137.5,4137.4,9.25462021]
[1759137054802,1e-08,4137.5,4137.4,23.75462021]
[1759137055818,1e-08,4137.5,4137.4,23.85151955]
[1759137058785,1e-08,4137.5,4137.4,23.38111955]
[1759137062230,1e-08,4137.5,4137.4,20.34911955]
[1759137062394,1e-08,4137.6,4137.5,2.41691842]
[1759137062732,0.59769028,4139.6,4137.6,0.792]
[1759137062912,0.4668,4139.2,4138.3,0.792]
[1759137063114,3.0,4140.4,4139.5,2.41570433]
[1759137063411,0.4668,4140.0,4139.6,5.44668765]
[1759137063607,0.7047,4139.9,4139.6,5.44668765]
[1759137063793,0.4668,4140.0,4139.6,5.44668765]
[1759137063794,0.7047,4139.8,4139.7,14.5]
[1759137064417,0.7039,4139.8,4139.7,14.5]
[1759137067534,0.7049,4139.8,4139.7,14.5]
[1759137067736,0.7049,4139.8,4139.7,16.91563398]
[1759137068150,0.7049,4139.8,4139.7,14.5]
[1759137068323,6.12047563,4139.8,4139.7,14.5]
[1759137068645,2.41588332,4139.3,4139.0,3.03]
[1759137068845,0.7047,4139.2,4139.0,3.03]
[1759137069044,6.12064398,4139.2,4139.0,3.03]
[1759137069262,1.84160768,4139.1,4138.4,2.41637287]
[1759137069465,0.6782,4139.0,4138.5,17.53]
[1759137069753,3.6782,4138.9,4138.5,17.53]
[1759137069954,0.6782,4138.8,4138.5,17.53]
[1759137070160,0.6782,4138.7,4138.5,17.53]
[1759137070333,3.72674506,4139.0,4138.5,17.53]
[1759137070660,1.4088148,4138.9,4138.5,17.53]
[1759137070824,0.6782,4138.8,4138.5,17.53]
[1759137071026,0.6782,4138.7,4138.5,17.53]
[1759137071333,0.6782,4138.6,4138.5,19.94633381]
[1759137071651,0.6782,4138.6,4138.5,17.53]
[1759137072044,0.6782,4138.6,4138.5,19.94633442]
[1759137072240,0.6782,4138.6,4138.5,17.53]
[1759137073535,0.6782,4138.6,4138.5,19.94633442]
[1759137073727,0.4304,4138.6,4138.5,19.94633442]
[1759137077035,0.6748,4138.6,4138.5,19.94633442]
[1759137078252,0.4304,4138.6,4138.5,19.94633442]
[1759137079163,0.2444,4138.8,4138.6,2.41626545]
[1759137079360,0.2444,4138.8,4138.7,3.03]
[1759137079665,0.2444,4138.8,4138.7,5.44621765]
[1759137079866,0.7046,4138.8,4138.7,5.44621765]
[1759137080066,0.7046,4138.8,4138.7,3.03]
[1759137080371,0.7046,4138.8,4138.7,2.03]
[1759137080866,0.7046,4138.8,4138.7,4.44621765]
[1759137081064,0.72674507,4138.9,4138.8,2.41615927]
[1759137081371,0.4602,4139.3,4138.8,0.2374]
[1759137081543,3.40900379,4139.5,4138.7,4.44621765]
[1759137081544,0.7267081,4139.0,4138.9,6.11260089]
[1759137081745,0.7046,4139.9,4139.5,2.41570622]
[1759137081958,0.7046,4139.9,4139.6,16.91568772]
[1759137082263,0.72660425,4139.7,4139.6,14.5]
[1759137082457,1.43120425,4139.7,4139.6,14.5]
[1759137082684,1.57442467,4139.7,4139.6,14.5]
[1759137083670,0.86982467,4139.7,4139.6,14.5]
[1759137083884,0.86982467,4139.7,4139.6,17.53]
[1759137083885,0.14322042,4139.7,4139.6,17.53]
[1759137084046,0.4602,4139.7,4139.6,14.5]
[1759137084239,0.7046,4139.7,4139.6,14.5]
[1759137085439,1.43118138,4139.7,4139.6,14.5]
[1759137085648,0.7046,4139.7,4139.6,14.5]
[1759137087255,1.43118137,4139.7,4139.6,14.5]
[1759137087453,2.1159456,4139.7,4139.6,14.5]
[1759137088359,1.43118137,4139.7,4139.6,14.5]
[1759137089187,1.18678137,4139.7,4139.6,14.5]
[1759137089486,0.4602,4139.7,4139.6,14.5]
[1759137089786,1.43038137,4139.7,4139.6,14.5]
[1759137090685,1.18598137,4139.7,4139.6,14.5]
[1759137090891,1.43038137,4139.7,4139.6,14.5]
[1759137091270,1.18598137,4139.7,4139.6,14.5]
[1759137091471,2.18046279,4139.7,4139.6,14.5]
[1759137091653,1.72026279,4139.7,4139.6,14.5]
[1759137092107,2.18046279,4139.7,4139.6,14.5]
[1759137092263,1.72026279,4139.7,4139.6,14.5]
[1759137095539,2.42486279,4139.7,4139.6,14.5]
[1759137097697,5.42486279,4139.7,4139.6,14.5]
[1759137098098,5.18046279,4139.7,4139.6,14.5]
[1759137098397,4.72026279,4139.7,4139.6,14.5]
[1759137098597,5.18046279,4139.7,4139.6,14.5]
[1759137099097,4.72026279,4139.7,4139.6,14.5]
[1759137101296,5.15696279,4139.7,4139.4,3.029]
[1759137101500,4.30869161,4139.6,4139.4,3.029]
[1759137101667,1.30869161,4139.6,4139.5,14.5]
[1759137101872,9.18153285,4139.6,4139.5,14.5]
[1759137102512,0.72660425,4139.6,4139.5,14.5]
[1759137102715,0.72660425,4139.6,4139.5,18.213]
[1759137103016,0.72660425,4139.6,4139.5,20.62875069]
[1759137103363,0.72660425,4139.6,4139.5,18.213]
[1759137103563,0.72660425,4139.6,4139.5,20.62875069]
[1759137105306,0.72760425,4139.6,4139.5,20.62875069]
[1759137106670,0.72760425,4139.6,4139.5,6.12875069]
[1759137107122,0.72760425,4139.6,4139.5,20.62875069]
[1759137107904,0.72760425,4139.6,4139.5,14.5]
[1759137108103,1.35180796,4139.6,4139.5,14.5]
[1759137108468,1.78850796,4139.6,4139.5,14.5]
[1759137108707,2.01990796,4139.6,4139.5,14.5]
[1759137111516,4.35180796,4139.6,4139.5,14.5]
[1759137111824,3.72760425,4139.6,4139.5,14.5]
[1759137112199,3.001,4139.6,4139.5,14.5]
[1759137114431,3.0002,4139.6,4139.5,14.5]
[1759137114792,3.4369,4139.6,4139.5,14.5]
[1759137115232,3.0002,4139.6,4139.5,14.5]
[1759137117015,0.0002,4139.6,4139.5,14.5]
[1759137117521,0.0002,4139.6,4139.5,14.7499]
[1759137118326,4.76386709,4139.6,4139.5,14.7499]
[1759137119928,4.76386709,4139.6,4139.5,14.5]
[1759137121007,3.0002,4139.6,4139.5,16.91575069]
[1759137121202,3.0002,4139.6,4139.5,14.7499]
[1759137121504,3.0,4139.5,4139.2,3.027]
[1759137121827,4.76366709,4139.3,4139.2,3.027]
[1759137122529,4.76366709,4139.3,4139.2,3.2769]
[1759137122910,4.76366709,4139.3,4139.2,17.7769]
[1759137123243,7.76366709,4139.3,4138.7,0.1208]
[1759137123427,4.76366709,4138.8,4138.6,3.2779]
[1759137123733,7.76366709,4138.8,4138.7,15.185]
[1759137124698,7.76366709,4138.8,4138.7,14.7499]
[1759137125013,7.76366709,4138.8,4138.7,14.7519]
[1759137125540,7.76366709,4138.8,4138.7,14.502]
[1759137128458,8.20036709,4138.8,4138.7,14.502]
[1759137128625,8.43176709,4138.8,4138.7,14.502]
[1759137129350,8.46396709,4138.8,4138.7,14.502]
[1759137129920,8.23006709,4138.8,4138.7,14.502]
[1759137130871,8.46396709,4138.8,4138.7,14.502]
[1759137131928,10.64622636,4138.8,4138.7,14.502]
[1759137132133,12.48895396,4138.8,4138.7,14.502]
[1759137132473,12.48895396,4138.8,4138.7,0.002]
[1759137134666,12.44965396,4138.8,4138.7,0.002]
[1759137139490,12.21965396,4138.8,4138.7,0.002]
[1759137139818,7.68598687,4138.8,4138.7,0.002]
[1759137140082,12.44965396,4138.8,4138.7,0.002]
[1759137141087,12.22045396,4138.8,4138.7,0.002]
[1759137141459,12.44965396,4138.8,4138.7,0.002]
[1759137143394,12.42818596,4138.8,4138.7,0.002]
[1759137146471,17.19185305,4138.8,4138.7,0.002]